[Event "Chinese League Division-A 2024"]
[Site "Fuling Chongqing"]
[Date "2024.07.06"]
[Round "9.1"]
[White "Wang, Hao"]
[Black "Yu, Yangyi"]
[Result "1/2-1/2"]
[ECO "C42"]
[WhiteElo "2702"]
[BlackElo "2715"]
[Annotator "TA"]
[PlyCount "68"]
[EventDate "2024.06.28"]
[EventType "team-tourn"]
[EventCountry "CHN"]
[SourceTitle "playchess.com"]
[Source "ChessBase"]
[SourceQuality "1"]
[TimeControl "40/5400+30:1800+30"]

{[%evp 17,68,26,40,40,34,8,6,10,11,7,6,0,0,0,0,-14,0,0,8,6,13,19,14,15,14,15,16,17,17,15,15,15,15,15,12,0,10,0,0,0,0,0,0,0,0,0,0,0,0,0,0,0,0]} 1. e4 {[%emt 0:00:04]} e5 {[%emt 0:00:09]} 2. Nf3 {[%emt 0:00:04]} Nf6 {[%emt 0:00:24]} 3. Nxe5 {[%emt 0:00:12]} d6 {[%emt 0:00:07][%cal Bd7d6,Bd6d5][%mdl 32]} 4. Nf3 {[%emt 0:00:03]} Nxe4 {[%emt 0:00:10]} 5. d4 {[%emt 0:00:09]} d5 {[%emt 0:00:11]} 6. Bd3 {[%emt 0:00:04]} Bf5 {[%emt 0:02:18][%cal Bc8f5,Bf5e4,Be4f3][%mdl 32]} 7. O-O {[%emt 0:00:17]} Be7 {[%emt 0:00:16]} 8. Re1 {[%emt 0:00:10]} O-O {[%emt 0:00:31]} 9. c4 {[%emt 0:05:50]} Nc6 {[%emt 0:01:00]} 10. cxd5 {[%emt 0:00:08]} Qxd5 {[%emt 0:00:07]} 11. Bxe4 {[%emt 0:00:19]} Bxe4 {[%emt 0:00:08] The position is equal.} 12. Nc3 {[%emt 0:00:02][%csl LRd5,LRe4]} Bxf3 {[%emt 0:00:13] A strong pair of Bishops.} 13. Nxd5 {[%emt 0:00:03]} Bxd1 {[%emt 0:00:11]} 14. Nxe7+ {[%emt 0:00:03]} Nxe7 {[%emt 0:00:06]} 15. Rxe7 {[%emt 0:00:04]} Rfe8 {[%emt 0:00:20]} 16. Rxe8+ {[%emt 0:00:06]} Rxe8 $11 {[%emt 0:00:04][%mdl 4096] Endgame. KRB-KRB} 17. Be3 {[%emt 0:00:07]} Bg4 {[%emt 0:03:12]} 18. d5 {[%emt 0:00:10][%cal Oa1c1]} a6 {[%emt 0:23:43]} 19. Rc1 {[%emt 0:00:38]} Rc8 {[%emt 0:00:35]} 20. Bf4 {[%emt 0:00:23]} c6 {[%emt 0:00:24]} 21. dxc6 {[%emt 0:00:07]} Rxc6 {[%emt 0:00:07]} 22. Rxc6 {[%emt 0:00:08]} bxc6 {[%emt 0:00:02] KB-KB} 23. f3 {[%emt 0:00:07]} Be6 {[%emt 0:00:05]} 24. a3 {[%emt 0:00:03]} f6 {[%emt 0:00:10]} 25. Kf2 {[%emt 0:00:05]} Kf7 {[%emt 0:00:04]} 26. h4 {[%emt 0:00:04]} h5 {[%emt 0:00:06]} 27. Ke3 {[%emt 0:00:22]} a5 {[%emt 0:00:24]} 28. a4 {[%emt 0:00:14]} Bb3 {[%emt 0:00:04]} 29. Bc7 {[%emt 0:00:03]} Bxa4 {[%emt 0:00:04]} 30. Bxa5 {[%emt 0:00:04]} Bb5 {[%emt 0:00:04]} 31. Kf2 {[%emt 0:00:14]} Ba6 {[%emt 0:00:04]} 32. Ke3 {[%emt 0:00:04]} Bb5 {[%emt 0:00:03]} 33. Kf2 {[%emt 0:00:04]} Ba6 {[%emt 0:00:02]} 34. Ke3 {[%emt 0:00:05]} Bb5 {[%emt 0:00:05] Weighted Error Value: White=0.04 (flawless) /Black=0.02 (flawless) .  Inaccurate:     	White=1     	---        OK:         	White=10    	Black=10     Best:        	White=1     	Black=1} 1/2-1/2

[Event "Chinese League Division-A 2024"]
[Site "Fuling Chongqing"]
[Date "2024.07.06"]
[Round "9.2"]
[White "Li, Chao b"]
[Black "Zhao, Jun"]
[Result "1/2-1/2"]
[ECO "C67"]
[WhiteElo "2645"]
[BlackElo "2538"]
[Annotator "RC"]
[PlyCount "54"]
[EventDate "2024.06.28"]
[EventType "team-tourn"]
[EventCountry "CHN"]
[SourceTitle "playchess.com"]
[Source "ChessBase"]
[SourceQuality "1"]
[TimeControl "40/5400+30:1800+30"]

1. e4 {[%emt 0:00:02]} e5 {[%emt 0:00:17]} 2. Nf3 {[%emt 0:00:06]} Nc6 {[%emt 0:00:07]} 3. Bb5 {[%emt 0:00:41]} Nf6 {[%emt 0:00:55]} 4. O-O {[%emt 0:00:11]} Nxe4 {[%emt 0:00:06]} 5. d4 {[%emt 0:00:46]} Nd6 {[%emt 0:00:12]} 6. Bxc6 {[%emt 0:00:19]} dxc6 {[%emt 0:00:06]} 7. dxe5 {[%emt 0:00:05]} Nf5 {[%emt 0:00:05]} 8. Qxd8+ {[%emt 0:00:18]} Kxd8 {[%emt 0:00:07]} 9. h3 {[%emt 0:00:04]} Bd7 {[%emt 0:02:30]} 10. Nc3 {[%emt 0:00:36]} h6 {[%emt 0:02:46]} 11. Rd1 {[%emt 0:00:25]} Kc8 {[%emt 0:02:08]} 12. Ne2 {[%emt 0:02:24]} Be7 {[%emt 0:04:08]} 13. g4 {[%emt 0:00:25]} Nh4 {[%emt 0:00:06]} 14. Nxh4 {[%emt 0:00:05]} Bxh4 {[%emt 0:00:04]} 15. Bf4 {[%emt 0:01:18]} Rd8 {[%emt 0:17:38]} 16. Ng3 {[%emt 0:01:42]} g5 {[%emt 0:02:23]} 17. Be3 {[%emt 0:00:13]} Bxg3 {[%emt 0:00:04]} 18. fxg3 {[%emt 0:00:09]} b6 {[%emt 0:00:34]} 19. Kf2 {[%emt 0:01:04]} Be6 {[%emt 0:00:54]} 20. Rxd8+ {[%emt 0:00:09]} Kxd8 {[%emt 0:00:05]} 21. Rd1+ {[%emt 0:00:05]} Ke7 {[%emt 0:00:14]} 22. a3 {[%emt 0:00:08]} Rd8 {[%emt 0:00:06]} 23. Rxd8 {[%emt 0:00:07]} Kxd8 {[%emt 0:00:06]} 24. Kf3 {[%emt 0:00:16]} Bd5+ {[%emt 0:00:09]} 25. Kf2 {[%emt 0:00:04]} Be6 {[%emt 0:00:07]} 26. Kf3 {[%emt 0:00:05]} Bd5+ {[%emt 0:00:05]} 27. Kf2 {[%emt 0:00:04]} Be6 {[%emt 0:00:05]} 1/2-1/2

[Event "Chinese League Division-A 2024"]
[Site "Fuling Chongqing"]
[Date "2024.07.06"]
[Round "9.3"]
[White "Zhou, Weiqi"]
[Black "Xiu, Deshun"]
[Result "1-0"]
[ECO "A07"]
[WhiteElo "2599"]
[BlackElo "2514"]
[Annotator "TA"]
[PlyCount "129"]
[EventDate "2024.06.28"]
[EventType "team-tourn"]
[EventCountry "CHN"]
[SourceTitle "playchess.com"]
[Source "ChessBase"]
[SourceQuality "1"]
[TimeControl "40/5400+30:1800+30"]

{[%evp 55,129,125,164,177,181,179,170,74,69,34,45,16,66,62,92,0,22,0,23,9,141,178,149,35,208,194,181,58,229,190,449,439,435,164,568,550,508,505,845,177,163,151,143,131,202,109,205,200,258,251,227,209,209,202,308,293,308,308,308,308,1246,289,1524,1287,1411,1400,1285,1042,5085,4802,2629,2629,29972,29975,29986,29987]} 1. Nf3 {[%emt 0:00:24]} d5 {[%emt 0:01:21]} 2. g3 {[%emt 0:01:10]} g6 {[%emt 0:01:37]} 3. Bg2 {[%emt 0:07:04]} Bg7 {[%emt 0:00:12]} 4. O-O {[%emt 0:01:27]} e5 {[%emt 0:03:04]} 5. d3 {[%emt 0:00:05]} Ne7 {[%emt 0:00:14]} 6. e4 {[%emt 0:00:22]} O-O {[%emt 0:01:11]} 7. b4 {[%emt 0:00:48]} d4 {[%emt 0:13:00]} 8. c3 {[%emt 0:01:39]} dxc3 {[%emt 0:02:06]} 9. Nxc3 {[%emt 0:00:27]} Bg4 {[%emt 0:00:14]} 10. b5 {[%emt 0:07:16]} a6 {[%emt 0:05:09]} 11. a4 {[%emt 0:05:35]} axb5 {[%emt 0:00:52]} 12. Nxb5 {[%emt 0:00:06]} c6 {[%emt 0:14:12]} 13. Nc3 {[%emt 0:07:07]} c5 {[%emt 0:01:23]} 14. Be3 {[%emt 0:15:06]} Nd7 {[%emt 0:16:29]} 15. Qb1 {[%emt 0:07:10]} b6 {[%emt 0:03:46]} 16. Nd2 {[%emt 0:00:36]} Nc6 {[%emt 0:03:34]} 17. Nd5 {[%emt 0:07:14]} Be6 {[%emt 0:01:05]} 18. Nc4 {[%emt 0:00:36]} Rb8 {[%emt 0:03:54]} 19. Qb5 {[%emt 0:04:39]} Na7 {[%emt 0:05:17]} 20. Qa6 {[%emt 0:01:54]} Nc6 {[%emt 0:00:17]} 21. Rab1 {[%emt 0:05:15]} Bxd5 {[%emt 0:02:52]} 22. exd5 {[%emt 0:00:02]} Nb4 {[%emt 0:00:10]} 23. Qb5 {[%emt 0:00:06]} f5 {[%emt 0:06:05]} 24. d6 {[%emt 0:00:41]} Nxd3 {[%emt 0:04:29]} 25. Bc6 {[%emt 0:03:38]} Nf6 {[%emt 0:01:33]} 26. Qb3 {[%emt 0:06:19]} e4 {[%emt 0:00:10]} 27. Ne5+ {[%emt 0:00:36]} Kh8 {[%emt 0:00:02]} 28. Nxd3 {[%emt 0:00:04]} exd3 {[%emt 0:01:17]} 29. Qxd3 {[%emt 0:00:26]} Ng4 {[%emt 0:00:50]} 30. d7 {[%emt 0:03:51]} Nxe3 {[%emt 0:01:44]} 31. fxe3 {[%emt 0:02:20]} (31. Qxe3 $18 {and White stays clearly on top. Threatens to win with Qf3.} f4 32. Qe6 (32. gxf4 Qc7 $16)) 31... Be5 $16 {[%emt 0:00:54]} 32. Qd5 {[%emt 0:04:22]} (32. Rfd1 $5 Kg7 33. Qc4 $16) 32... Qe7 $1 {[%emt 0:02:28]} 33. Rf3 {[%emt 0:01:41]} Bc7 {[%emt 0:00:41]} (33... Kg7 $1 $11) 34. Bb5 $14 {[%emt 0:02:36]} Rf6 {[%emt 0:01:43]} 35. Qb3 {[%emt 0:00:25]} ({White should try} 35. e4 $16) 35... h5 {[%emt 0:01:19]} 36. Rd1 {[%emt 0:00:24]} Kh7 {[%emt 0:00:18]} 37. e4 {[%emt 0:02:48]} fxe4 {[%emt 0:02:35]} (37... f4 $1 $11 {keeps the balance.}) 38. Rxf6 $16 {[%emt 0:00:37]} Qxf6 {[%emt 0:00:01] [#]} 39. Qe3 {[%emt 0:01:38]} (39. Rf1 $1 $16 {[%cal Rf1f6]} Qd4+ 40. Kg2) 39... Qf3 $2 {[%emt 0:01:06]} (39... Rf8 $14) 40. Re1 $18 {[%emt 0:00:00]} Rf8 {[%emt 0:00:00]} 41. Qxe4 {[%emt 0:02:58]} ({Only move:} 41. Qxf3 $18 exf3 42. Re7+ Kh6 43. Kf2) 41... Qxe4 $2 {[%emt 0:10:00]} (41... Qf2+ $14 42. Kh1 Bd8) 42. Rxe4 $18 {[%emt 0:00:08]} Bd8 $2 {[%emt 0:07:02]} (42... g5 43. Re8 Kg7) 43. h4 {[%emt 0:04:43]} Kg7 {[%emt 0:04:06]} 44. Kg2 $2 {[%emt 0:03:53]} (44. Re8) 44... Rf6 $2 {[%emt 0:03:01]} (44... g5 45. g4 Rf4 46. Rxf4 gxf4) 45. Re8 $18 {[%emt 0:00:12]} Rf8 {[%emt 0:00:06]} 46. Bd3 {[%emt 0:03:49]} g5 {[%emt 0:01:04]} (46... Rh8 $142 47. Bxg6 c4) 47. hxg5 $2 {[%emt 0:00:11]} (47. g4) 47... Bxg5 $18 {[%emt 0:00:04]} 48. Re5 {[%emt 0:00:33]} Bf6 {[%emt 0:00:58]} 49. Rxh5 {[%emt 0:01:11]} Kf7 {[%emt 0:00:04]} (49... Bd8 $16 50. Rh7+ Kf6) 50. Rd5 {[%emt 0:05:41]} (50. Bb5 $18) 50... Ke7 {[%emt 0:00:46]} (50... Ke6 $16 {is a better defense.} 51. Bc4 Bd8 52. Rd1+ (52. Rxc5+ Kxd7 53. Rd5+ Kc6 $14) 52... Ke7) 51. Bb5 {[%emt 0:01:19]} Rd8 {[%emt 0:01:46]} 52. Rf5 {[%emt 0:05:26]} Ke6 {[%emt 0:04:09]} 53. Rf1 {[%emt 0:00:33]} Be7 {[%emt 0:00:37]} 54. Rd1 {[%emt 0:01:07]} Bg5 {[%emt 0:01:21]} (54... Rf8 {was worth a try.} 55. g4 Ke5) 55. Kf3 {[%emt 0:00:27]} Ke5 {[%emt 0:00:28]} 56. Re1+ {[%emt 0:01:33]} Kd6 {[%emt 0:00:11]} 57. Re8 {[%emt 0:01:10]} Kc7 $2 {[%emt 0:00:33]} (57... Be7 58. g4 c4) 58. Ke4 $2 {[%emt 0:00:20]} (58. Kg4) 58... Bf6 $2 {[%emt 0:00:57]} (58... Kd6 59. Kf5 Be7) 59. Kd5 $18 {[%emt 0:00:42]} Bg5 {[%emt 0:00:04]} 60. g4 {[%emt 0:00:12]} Bh4 {[%emt 0:00:06]} 61. Ke6 {[%emt 0:00:55]} Bg5 {[%emt 0:00:06]} 62. Kf5 {[%emt 0:00:07]} Bc1 {[%emt 0:00:33]} 63. g5 {[%emt 0:00:20]} Bb2 {[%emt 0:01:27]} 64. Ke6 {[%emt 0:00:56]} c4 {[%emt 0:01:23]} 65. Rxd8 {[%emt 0:00:13]} 1-0

[Event "Chinese League Division-A 2024"]
[Site "Fuling Chongqing"]
[Date "2024.07.06"]
[Round "9.4"]
[White "Li, Ruofan"]
[Black "Song, Yuxin"]
[Result "1/2-1/2"]
[ECO "E15"]
[WhiteElo "2321"]
[BlackElo "2383"]
[Annotator "TA"]
[PlyCount "67"]
[EventDate "2024.06.28"]
[EventType "team-tourn"]
[EventCountry "CHN"]
[SourceTitle "playchess.com"]
[Source "ChessBase"]
[SourceQuality "1"]
[TimeControl "40/5400+30:1800+30"]

{[%evp 25,67,60,34,38,108,104,93,95,75,32,31,64,56,71,49,59,60,48,56,0,5,18,15,0,0,0,0,0,0,-75,-75,-75,-70,-127,-61,-90,-69,-70,-55,-48,-18,-15,0,-6]} 1. d4 {[%emt 0:00:03]} Nf6 {[%emt 0:00:01]} 2. c4 {[%emt 0:00:10]} e6 {[%emt 0:00:02]} 3. Nf3 {[%emt 0:00:18]} b6 {[%emt 0:00:02]} 4. g3 {[%emt 0:05:41]} Ba6 {[%emt 0:00:02]} 5. b3 {[%emt 0:03:08]} Bb4+ {[%emt 0:00:03]} 6. Bd2 {[%emt 0:00:33]} Be7 {[%emt 0:00:02]} 7. Bg2 {[%emt 0:00:05]} O-O {[%emt 0:00:22]} 8. O-O {[%emt 0:01:46]} d5 {[%emt 0:00:02]} 9. Ne5 {[%emt 0:05:00]} c5 {[%emt 0:00:02]} 10. cxd5 {[%emt 0:03:31]} exd5 {[%emt 0:03:48]} 11. dxc5 {[%emt 0:04:23]} bxc5 {[%emt 0:00:11]} 12. Nc3 {[%emt 0:00:06]} Bb7 {[%emt 0:01:02]} 13. Rc1 {[%emt 0:00:12]} Na6 {[%emt 0:03:13]} 14. Bg5 {[%emt 0:03:10]} Ne4 {[%emt 0:36:06]} (14... Rb8 $14) 15. Nxe4 {[%emt 0:12:05]} (15. Bxe7 {is interesting.} Qxe7 16. Nxe4 dxe4 17. Qd7) 15... Bxg5 {[%emt 0:00:31]} 16. Nxg5 {[%emt 0:02:06] White is better.} Qxg5 {[%emt 0:00:01]} 17. Bxd5 {[%emt 0:11:39]} Rad8 $1 {[%emt 0:02:58]} 18. Bxf7+ {[%emt 0:00:05]} (18. Bxb7 {simplifies} Rxd1 19. Rfxd1 Qxe5 20. Bxa6 g6 21. e3) 18... Kh8 {[%emt 0:08:31]} 19. f4 $1 {[%emt 0:00:52]} Qf6 {[%emt 0:03:42]} 20. Qc2 {[%emt 0:04:11] [#] Threatens to win with Rfd1.} Rxf7 {[%emt 0:00:12]} 21. Nxf7+ {[%emt 0:00:04]} Qxf7 {[%emt 0:00:01]} 22. e4 {[%emt 0:06:05] Repels Qd5} (22. Qc4 $14 Qe7 23. Rfd1) 22... Re8 $132 {[%emt 0:03:43][%mdl 2048] Black is not keeping still} 23. Rfe1 {[%emt 0:00:37]} Nb4 {[%emt 0:08:55]} 24. Qxc5 {[%emt 0:09:33]} Nd3 {[%emt 0:00:03]} (24... Nxa2 $2 25. Qc7 (25. Rc4 Bd5 $18) 25... Re7 (25... Qxb3 $2 26. Rb1 $18) 26. Qd8+ Re8 27. Rc7 Rxd8 (27... Qg6 $2 28. Qd4 $18) 28. Rxf7 $18) 25. Qc7 {[%emt 0:00:06]} Qf6 {[%emt 0:01:21] ( -> ...Qd4+)} (25... Qxc7 26. Rxc7 Nxe1 27. Rxb7) 26. Qxb7 {[%emt 0:20:29]} Qb2 $1 {[%emt 0:00:01]} 27. Rf1 {[%emt 0:03:51] Wards off Qf2+} Nxc1 $17 {[%emt 0:01:00]} 28. Qxa7 {[%emt 0:00:53]} Nxa2 {[%emt 0:04:34][%cal Ob2c2]} 29. Qa4 {[%emt 0:00:48] [#]} (29. Qd7 $15 Rg8 (29... Rxe4 30. Qd8+) 30. f5) 29... Rb8 {[%emt 0:00:19]} ({Black should try} 29... Rd8 $1 $17 {White must now prevent ...Nc3.} 30. Qc4 Nc3) 30. e5 {[%emt 0:01:45]} Nc3 {[%emt 0:02:53]} ({But not} 30... Qxb3 31. Qxb3 Rxb3 32. Rd1 $15) 31. Qc4 {[%emt 0:07:36]} Qd2 {[%emt 0:06:37] Strongly threatening ...Nd1.} 32. Rf2 {[%emt 0:00:00]} Qe1+ {[%emt 0:01:58]} 33. Kg2 {[%emt 0:00:00] And now Rc2 would win.} Rd8 {[%emt 0:05:53]} 34. Rc2 {[%emt 0:00:00] Weighted Error Value: White=0.18 (very precise) /Black=0.13 (very precise) .  Mistake:       	White=3     	Black=2      Inaccurate:     	White=2     	Black=1      OK:         	White=4     	Black=5      Best:        	White=3     	Black=2      Strong:       	White=1     	Black=2} 1/2-1/2

[Event "Chinese League Division-A 2024"]
[Site "Fuling Chongqing"]
[Date "2024.07.06"]
[Round "9.5"]
[White "Li, Xueyi"]
[Black "Wang, Yu A."]
[Result "1/2-1/2"]
[ECO "E11"]
[WhiteElo "2209"]
[BlackElo "2234"]
[Annotator "TA"]
[PlyCount "60"]
[EventDate "2024.06.28"]
[EventType "team-tourn"]
[EventCountry "CHN"]
[SourceTitle "playchess.com"]
[Source "ChessBase"]
[SourceQuality "1"]
[TimeControl "40/5400+30:1800+30"]

{[%evp 13,60,40,52,-4,-4,-7,0,-8,20,13,23,15,0,3,0,0,23,13,28,23,32,31,39,29,27,29,29,27,33,28,27,17,18,20,16,12,16,0,0,0,1,0,10,1,1,1,1,1,1]} 1. d4 {[%emt 0:00:02]} Nf6 {[%emt 0:00:02]} 2. c4 {[%emt 0:00:07]} e6 {[%emt 0:00:04]} 3. Nf3 {[%emt 0:00:05]} Bb4+ {[%emt 0:01:29]} 4. Nbd2 {[%emt 0:00:06]} c5 {[%emt 0:09:23]} 5. a3 {[%emt 0:00:22]} Bxd2+ {[%emt 0:00:13]} 6. Bxd2 {[%emt 0:00:08]} cxd4 {[%emt 0:05:40]} 7. Nxd4 {[%emt 0:01:24]} Nc6 {[%emt 0:01:35]} 8. Nb5 {[%emt 0:13:07]} ({White should play} 8. Bf4 $14) 8... d5 $11 {[%emt 0:05:38]} 9. e3 {[%emt 0:18:45]} a6 {[%emt 0:09:13]} 10. Nc3 {[%emt 0:02:22]} dxc4 {[%emt 0:01:00]} 11. Bxc4 {[%emt 0:00:20]} b5 {[%emt 0:00:25]} 12. Be2 {[%emt 0:00:06]} Bb7 {[%emt 0:00:50]} 13. O-O {[%emt 0:04:14]} O-O {[%emt 0:00:25]} 14. Bf3 {[%emt 0:01:08]} Qd3 {[%emt 0:14:23]} 15. Qe2 {[%emt 0:04:40]} Rad8 {[%emt 0:08:03] [#] Strongly threatening ...Qxe2.} (15... Qg6 {simplifies} 16. Bxc6 Bxc6 17. f3 Nd7) 16. Rfd1 {[%emt 0:02:06]} Qc2 {[%emt 0:10:26]} 17. Be1 {[%emt 0:02:21]} Qxe2 {[%emt 0:01:01]} 18. Nxe2 {[%emt 0:00:17]} (18. Bxe2 {simplifies} Rxd1 19. Rxd1 Rd8 20. Rxd8+ Nxd8 21. f3) 18... Rxd1 {[%emt 0:01:52]} 19. Rxd1 {[%emt 0:00:11]} Rd8 {[%emt 0:00:14] Against Rd6} 20. Rc1 {[%emt 0:01:50]} Nd5 {[%emt 0:02:27]} 21. Nc3 {[%emt 0:07:05]} Ne5 {[%emt 0:02:09]} 22. Nxd5 {[%emt 0:00:36]} Nxf3+ {[%emt 0:00:53] The position is equal.} 23. gxf3 {[%emt 0:00:05] [#] Black must now prevent Ba5.} Bxd5 {[%emt 0:00:45][%mdl 4096] Endgame. KRB-KRB} 24. Ba5 {[%emt 0:00:17]} Re8 {[%emt 0:06:06]} 25. e4 {[%emt 0:00:17]} Bc4 {[%emt 0:00:32]} 26. Kg2 {[%emt 0:03:27]} e5 {[%emt 0:01:36]} 27. Rd1 {[%emt 0:00:18]} h5 {[%emt 0:02:17]} 28. Rd6 {[%emt 0:00:21]} Re6 {[%emt 0:00:25]} 29. Rxe6 {[%emt 0:00:05]} Bxe6 {[%emt 0:00:08]} 30. Bc3 {[%emt 0:00:03]} f6 {[%emt 0:00:05] Weighted Error Value: White=0.07 (flawless) /Black=0.06 (flawless) .  Inaccurate:     	---       	Black=1      OK:         	White=10    	Black=13     Best:        	---       	Black=1} 1/2-1/2

[Event "Chinese League Division-A 2024"]
[Site "Fuling Chongqing"]
[Date "2024.07.06"]
[Round "9.6"]
[White "Lu, Shanglei"]
[Black "Xu, Yinglun"]
[Result "1/2-1/2"]
[ECO "C02"]
[WhiteElo "2606"]
[BlackElo "2526"]
[Annotator "TA"]
[PlyCount "60"]
[EventDate "2024.06.28"]
[EventType "team-tourn"]
[EventCountry "CHN"]
[SourceTitle "playchess.com"]
[Source "ChessBase"]
[SourceQuality "1"]
[TimeControl "40/5400+30:1800+30"]

{[%evp 17,60,0,20,20,18,10,26,0,0,0,0,0,0,-17,0,0,0,-14,-14,-48,-66,-56,-63,-68,-68,-64,-33,-50,-29,-37,-9,-9,-19,-19,-9,-31,-20,-16,-7,-5,0,-10,0,-1,0]} 1. e4 {[%emt 0:00:03]} e6 {[%emt 0:00:14]} 2. d4 {[%emt 0:01:27]} d5 {[%emt 0:00:07]} 3. e5 {[%emt 0:00:56]} c5 {[%emt 0:00:09]} 4. c3 {[%emt 0:00:20]} Nc6 {[%emt 0:00:14]} 5. Nf3 {[%emt 0:00:07]} Bd7 {[%emt 0:00:05]} 6. Be2 {[%emt 0:01:10]} Nge7 {[%emt 0:01:03]} 7. Na3 {[%emt 0:01:10]} cxd4 {[%emt 0:01:02]} 8. cxd4 {[%emt 0:00:03]} Nf5 {[%emt 0:00:06]} 9. Nc2 {[%emt 0:00:02]} Be7 {[%emt 0:00:11]} 10. Bd2 {[%emt 0:00:04]} a5 {[%emt 0:10:19]} 11. O-O {[%emt 0:03:10]} O-O {[%emt 0:00:53]} 12. g4 {[%emt 0:15:34] White has an edge.} Nh4 {[%emt 0:02:01]} 13. Nxh4 {[%emt 0:00:54]} Bxh4 {[%emt 0:00:05]} 14. f4 {[%emt 0:00:08]} f6 {[%emt 0:06:51]} 15. Bd3 {[%emt 0:05:33][%cal Og4g5]} g5 {[%emt 0:11:41]} (15... fxe5 {is more complex.} 16. fxe5 Qb6 17. Be3 Rxf1+ 18. Qxf1 Be7) 16. Qe2 {[%emt 0:34:21]} gxf4 {[%emt 0:07:49]} 17. Bxf4 {[%emt 0:00:56] [#] exf6 would now be deadly.} fxe5 {[%emt 0:01:55]} 18. Bxe5 {[%emt 0:00:12]} Nxe5 {[%emt 0:05:10]} 19. Qxe5 {[%emt 0:00:28][%cal Od3h7]} Qg5 {[%emt 0:00:12]} 20. Qxg5+ {[%emt 0:06:26]} Bxg5 {[%emt 0:00:09]} 21. Kg2 {[%emt 0:00:15]} h6 {[%emt 0:00:25]} 22. h3 {[%emt 0:00:02]} Rxf1 {[%emt 0:00:07]} 23. Rxf1 {[%emt 0:00:04]} Rf8 {[%emt 0:00:06]} 24. Rxf8+ {[%emt 0:00:03]} Kxf8 $11 {[%emt 0:00:05][%mdl 4096] Endgame. KBB-KBN} 25. Ne1 {[%emt 0:00:15]} Bf4 {[%emt 0:00:35]} 26. Kf3 {[%emt 0:00:14]} Bc1 {[%emt 0:00:17]} 27. b3 {[%emt 0:00:04] The position is equal.} Bd2 {[%emt 0:00:06]} 28. Ke2 {[%emt 0:00:08]} Bf4 {[%emt 0:00:05]} 29. Kf3 {[%emt 0:00:04]} Bd2 {[%emt 0:00:03]} 30. Ke2 {[%emt 0:00:04]} Bf4 {[%emt 0:00:39] Weighted Error Value: White=0.08 (flawless) /Black=0.11 (very precise) .  Inaccurate:     	White=2     	Black=2      OK:         	White=9     	Black=2      Best:        	White=1     	Black=2} 1/2-1/2

[Event "Chinese League Division-A 2024"]
[Site "Fuling Chongqing"]
[Date "2024.07.06"]
[Round "9.7"]
[White "Xie, Kaifan"]
[Black "Xu, Minghui"]
[Result "1/2-1/2"]
[ECO "D41"]
[WhiteElo "2376"]
[BlackElo "2388"]
[Annotator "TA"]
[PlyCount "60"]
[EventDate "2024.06.28"]
[EventType "team-tourn"]
[EventCountry "CHN"]
[SourceTitle "playchess.com"]
[Source "ChessBase"]
[SourceQuality "1"]
[TimeControl "40/5400+30:1800+30"]

{[%evp 13,60,8,12,20,19,20,21,28,25,16,25,14,22,6,17,18,8,10,5,12,6,9,9,1,7,12,16,11,10,0,0,0,8,0,0,0,0,0,0,0,14,14,13,14,14,14,14,0,0]} 1. d4 {[%emt 0:00:07]} d5 {[%emt 0:01:03]} 2. c4 {[%emt 0:00:31]} e6 {[%emt 0:00:09]} 3. Nf3 {[%emt 0:01:09]} Nf6 {[%emt 0:00:07]} 4. Nc3 {[%emt 0:00:06]} c5 {[%emt 0:01:02]} 5. cxd5 {[%emt 0:03:24]} cxd4 {[%emt 0:00:39]} 6. Qa4+ {[%emt 0:11:21]} Bd7 {[%emt 0:00:12]} 7. Qxd4 {[%emt 0:02:14]} exd5 {[%emt 0:00:02]} 8. Nxd5 {[%emt 0:02:33] [#] Hoping for Qe5+.} Qa5+ {[%emt 0:00:10]} 9. Nc3 {[%emt 0:00:11]} Nc6 {[%emt 0:00:07] Repels Qe5+} 10. Qd1 {[%emt 0:01:29]} Ne4 {[%emt 0:00:13][%cal Oa8d8]} 11. Bd2 {[%emt 0:01:44]} Nxd2 {[%emt 0:00:57]} 12. Nxd2 {[%emt 0:01:49][%cal Bf3d2,Bd2c4,Bc4d6,Bd6b7,Bb7c5][%mdl 32]} Bb4 {[%emt 0:00:07] The position is equal.} 13. Rc1 {[%emt 0:03:28]} Bxc3 {[%emt 0:00:07]} 14. Rxc3 {[%emt 0:01:50]} Qxa2 {[%emt 0:00:08]} 15. Nc4 {[%emt 0:01:48] aiming for e4.} Be6 {[%emt 0:00:06]} 16. e4 {[%emt 0:01:59]} ({Resist} 16. Nd6+ Kf8 17. Qd2 (17. Nxb7 Qxb2 18. Qd6+ Ne7 $11) 17... Qa1+ 18. Rc1 Qa5 19. Qxa5 (19. Nxb7 Qxd2+ 20. Kxd2 Rb8 $11) 19... Nxa5) 16... Rd8 {[%emt 0:00:07]} 17. Nd6+ {[%emt 0:01:58]} Kf8 $1 {[%emt 0:00:05] [#]} 18. Qc1 {[%emt 0:02:55]} Qa4 $1 $132 {[%emt 0:00:07][%mdl 2048] Black is not keeping still} (18... Rxd6 $2 {perishes.} 19. Ra3 $18) 19. Nxb7 {[%emt 0:00:46]} Qxe4+ {[%emt 0:00:06]} 20. Qe3 {[%emt 0:00:05]} Qxe3+ {[%emt 0:00:04]} 21. fxe3 {[%emt 0:00:07]} Rb8 {[%emt 0:00:08]} 22. Nc5 {[%emt 0:03:03] Black must now prevent Nxe6+.} Nd8 {[%emt 0:00:02]} 23. Bd3 {[%emt 0:05:34]} g6 {[%emt 0:02:47]} 24. O-O {[%emt 0:06:23]} Kg7 {[%emt 0:00:08]} 25. Ra3 {[%emt 0:03:56]} Rxb2 {[%emt 0:01:32]} 26. Nxe6+ {[%emt 0:01:09]} Nxe6 {[%emt 0:00:15]} 27. Rxa7 {[%emt 0:00:07]} Rf8 {[%emt 0:00:03]} 28. Bc4 {[%emt 0:02:19]} Rb6 {[%emt 0:00:07]} 29. Re7 {[%emt 0:00:47]} Nd8 {[%emt 0:02:46]} 30. Rd7 {[%emt 0:01:46]} Rb7 {[%emt 0:05:55] An uneventful encounter.   Weighted Error Value: White=0.02 (flawless) /Black=0.00 (flawless) .  OK:         	White=10    	Black=16     Best:        	White=3     	Black=4      Strong:       	---       	Black=2} 1/2-1/2